[Event "32nd NATO Chess Championship"]
[Site "Tartu, Estonia"]
[Date "2022.06.28"]
[Round "3.27"]
[White "Stuhr, Finn"]
[Black "Balmaceda, Enrico"]
[Result "0-1"]
[TimeControl "90 min + 30 sec increment from move one"]
[WhiteFideId "1400789"]
[BlackFideId "2089785"]
[WhiteElo "1686"]
[BlackElo "1958"]

1. e4 {[%clk 01:30:57]} {[%emt 00:00:02]} c5 {[%clk 01:30:16]} {[%emt
00:00:45]} 2. Bc4 {[%clk 01:31:18]} {[%emt 00:00:08]} Nc6 {[%clk 01:30:19]}
{[%emt 00:00:28]} 3. Nf3 {[%clk 01:31:21]} {[%emt 00:00:25]} g6 {[%clk
01:29:59]} {[%emt 00:00:51]} 4. c3 {[%clk 01:28:01]} {[%emt 00:03:50]} Bg7
{[%clk 01:29:45]} {[%emt 00:00:45]} 5. d3 {[%clk 01:27:56]} {[%emt 00:00:34]}
e6 {[%clk 01:25:51]} {[%emt 00:04:26]} 6. Qe2 {[%clk 01:28:14]} {[%emt
00:00:11]} Nge7 {[%clk 01:24:52]} {[%emt 00:01:31]} 7. Bb3 {[%clk 01:24:27]}
{[%emt 00:04:15]} Qc7 {[%clk 01:14:05]} {[%emt 00:11:17]} 8. O-O {[%clk
01:21:16]} {[%emt 00:03:40]} O-O {[%clk 01:12:44]} {[%emt 00:01:52]} 9. Be3
{[%clk 01:19:11]} {[%emt 00:02:34]} b6 {[%clk 01:06:15]} {[%emt 00:07:00]} 10.
Nbd2 {[%clk 01:18:52]} {[%emt 00:00:48]} Ba6 {[%clk 01:02:45]} {[%emt
00:04:01]} 11. a4 {[%clk 01:16:06]} {[%emt 00:03:16]} d5 {[%clk 00:59:33]}
{[%emt 00:03:42]} 12. Bg5 {[%clk 01:08:20]} {[%emt 00:08:14]} Rfe8 {[%clk
00:29:05]} {[%emt 00:31:00]} 13. Rfe1 {[%clk 01:02:16]} {[%emt 00:06:33]} Qd7
{[%clk 00:28:05]} {[%emt 00:01:30]} 14. Bc2 {[%clk 00:59:11]} {[%emt 00:03:35]}
h6 {[%clk 00:25:15]} {[%emt 00:03:21]} 15. Bf4 {[%clk 00:55:20]} {[%emt
00:04:19]} Rad8 {[%clk 00:21:42]} {[%emt 00:04:05]} 16. e5 {[%clk 00:51:58]}
{[%emt 00:03:52]} Rc8 {[%clk 00:18:52]} {[%emt 00:03:20]} 17. g4 {[%clk
00:45:42]} {[%emt 00:06:45]} g5 {[%clk 00:11:44]} {[%emt 00:07:40]} 18. Bg3
{[%clk 00:40:52]} {[%emt 00:05:19]} Ng6 {[%clk 00:12:08]} {[%emt 00:00:07]} 19.
h4 {[%clk 00:35:35]} {[%emt 00:05:47]} gxh4 {[%clk 00:12:29]} {[%emt 00:00:09]}
20. Bxh4 {[%clk 00:27:26]} {[%emt 00:02:44]} Nxh4 {[%clk 00:11:57]} {[%emt
00:06:56]} 21. Nxh4 {[%clk 00:27:01]} {[%emt 00:00:32]} Nxe5 {[%clk 00:12:17]}
{[%emt 00:00:34]} 22. f4 {[%clk 00:19:19]} {[%emt 00:08:11]} Ng6 {[%clk
00:10:49]} {[%emt 00:01:58]} 23. Qh2 {[%clk 00:19:26]} {[%emt 00:00:22]} Nxh4
{[%clk 00:09:13]} {[%emt 00:02:07]} 24. Qxh4 {[%clk 00:18:37]} {[%emt
00:00:09]} Qd8 {[%clk 00:09:43]} 25. g5 {[%clk 00:18:06]} {[%emt 00:02:11]}
hxg5 {[%clk 00:09:56]} {[%emt 00:00:18]} 26. fxg5 {[%clk 00:18:16]} {[%emt
00:00:18]} e5 {[%clk 00:09:23]} {[%emt 00:01:04]} 27. Kf2 {[%clk 00:17:26]}
{[%emt 00:01:20]} Rc6 {[%clk 00:09:17]} {[%emt 00:00:36]} 28. Nf3 {[%clk
00:14:36]} {[%emt 00:03:19]} Bc8 {[%clk 00:07:41]} {[%emt 00:02:08]} 29. Qg3
{[%clk 00:12:50]} {[%emt 00:02:15]} Qe7 {[%clk 00:05:38]} {[%emt 00:02:34]} 30.
Re2 {[%clk 00:11:29]} {[%emt 00:01:51]} Bf5 {[%clk 00:04:04]} {[%emt 00:02:05]}
31. Rae1 {[%clk 00:10:41]} {[%emt 00:01:17]} Re6 {[%clk 00:04:13]} {[%emt
00:00:21]} 32. Nh4 {[%clk 00:06:23]} {[%emt 00:04:47]} Bh7 {[%clk 00:03:55]}
{[%emt 00:00:48]} 33. Qg2 {[%clk 00:05:32]} {[%emt 00:01:20]} e4 {[%clk
00:03:26]} {[%emt 00:01:00]} 34. dxe4 {[%clk 00:03:08]} {[%emt 00:02:54]} Bxe4
{[%clk 00:03:08]} {[%emt 00:00:49]} 35. Bxe4 {[%clk 00:03:35]} {[%emt
00:00:02]} Rxe4 {[%clk 00:03:15]} {[%emt 00:00:23]} 36. Rxe4 {[%clk 00:03:46]}
{[%emt 00:00:18]} dxe4 {[%clk 00:03:34]} {[%emt 00:00:12]} 37. Nf5 {[%clk
00:03:59]} {[%emt 00:00:17]} Qe5 {[%clk 00:03:38]} {[%emt 00:00:25]} 38. Qg4
{[%clk 00:02:37]} {[%emt 00:02:24]} Qh2+ {[%clk 00:03:27]} {[%emt 00:01:10]} 39.
Kf1 {[%clk 00:02:37]} {[%emt 00:00:30]} Qxb2 {[%clk 00:03:02]} {[%emt
00:00:55]} 40. Qg3 {[%clk 00:02:50]} {[%emt 00:00:12]} Qxc3 {[%clk 00:03:05]}
{[%emt 00:00:31]} 41. Nh6+ {[%clk 00:02:46]} {[%emt 00:00:31]} Kh7 {[%clk
00:02:46]} {[%emt 00:00:52]} 42. Qf4 {[%clk 00:01:51]} {[%emt 00:01:25]} Qh3+
{[%clk 00:01:53]} {[%emt 00:01:23]} 43. Kf2 {[%clk 00:01:39]} {[%emt 00:00:42]}
Bd4+ {[%clk 00:01:55]} {[%emt 00:00:28]} 44. Re3 {[%clk 00:01:07]} {[%emt
00:01:01]} Qxe3+ {[%clk 00:02:15]} {[%emt 00:00:11]} 45. Qxe3 {[%clk 00:01:21]}
{[%emt 00:00:16]} Bxe3+ {[%clk 00:02:42]} {[%emt 00:00:03]} 46. Kxe3 {[%clk
00:01:39]} {[%emt 00:00:12]} Re7 {[%clk 00:02:25]} {[%emt 00:00:46]} 47. Nf5
{[%clk 00:01:40]} {[%emt 00:00:30]} Re5 {[%clk 00:02:22]} {[%emt 00:00:34]} 48.
Nd6 {[%clk 00:01:04]} {[%emt 00:01:06]} Kg6 {[%clk 00:01:44]} {[%emt 00:01:08]}
49. Kf4 {[%clk 00:00:37]} {[%emt 00:00:56]} Re6 {[%clk 00:01:10]} {[%emt
00:01:04]} 0-1

[Event "32nd NATO Chess Championship"]
[Site "Tartu, Estonia"]
[Date "2022.06.28"]
[Round "3.28"]
[White "Randall, Gordon"]
[Black "O`byrne, Daniel"]
[Result "1-0"]
[TimeControl "90 min + 30 sec increment from move one"]
[WhiteFideId "2056518"]
[BlackFideId "440825"]
[WhiteElo "1954"]
[BlackElo "1664"]

1. d4 {[%clk 01:30:52]} {[%emt 00:00:07]} Nf6 {[%clk 01:30:50]} {[%emt
00:00:10]} 2. c4 {[%clk 01:31:15]} {[%emt 00:00:07]} e5 {[%clk 01:31:13]}
{[%emt 00:00:06]} 3. dxe5 {[%clk 01:31:38]} {[%emt 00:00:07]} Ne4 {[%clk
01:30:18]} {[%emt 00:01:25]} 4. a3 {[%clk 01:30:18]} {[%emt 00:01:50]} Bc5
{[%clk 01:26:43]} {[%emt 00:04:05]} 5. e3 {[%clk 01:30:04]} {[%emt 00:00:43]}
d6 {[%clk 01:26:13]} {[%emt 00:01:01]} 6. Qd5 {[%clk 01:25:30]} {[%emt
00:05:03]} Ng5 {[%clk 01:24:04]} {[%emt 00:02:39]} 7. exd6 {[%clk 01:24:04]}
{[%emt 00:01:57]} Bxd6 {[%clk 01:24:02]} {[%emt 00:00:31]} 8. e4 {[%clk
01:22:30]} {[%emt 00:02:04]} Ne6 {[%clk 01:23:01]} {[%emt 00:01:31]} 9. Nc3
{[%clk 01:15:56]} {[%emt 00:07:04]} c6 {[%clk 01:21:23]} {[%emt 00:02:09]} 10.
Qd1 {[%clk 01:14:08]} {[%emt 00:02:17]} O-O {[%clk 01:18:54]} {[%emt 00:02:59]}
11. Nf3 {[%clk 01:12:06]} {[%emt 00:02:32]} Qc7 {[%clk 01:18:14]} {[%emt
00:01:10]} 12. Be2 {[%clk 01:09:46]} {[%emt 00:02:50]} Re8 {[%clk 01:16:25]}
{[%emt 00:02:19]} 13. O-O {[%clk 01:08:15]} {[%emt 00:02:00]} Nc5 {[%clk
01:14:01]} {[%emt 00:02:55]} 14. Qc2 {[%clk 01:05:17]} {[%emt 00:03:28]} Bg4
{[%clk 01:08:13]} {[%emt 00:06:18]} 15. h3 {[%clk 01:00:38]} {[%emt 00:05:09]}
Bh5 {[%clk 01:08:27]} {[%emt 00:00:16]} 16. Be3 {[%clk 00:53:18]} {[%emt
00:07:49]} Bg6 {[%clk 01:07:46]} {[%emt 00:01:12]} 17. Nd2 {[%clk 00:49:39]}
{[%emt 00:04:07]} Nbd7 {[%clk 01:02:21]} {[%emt 00:05:57]} 18. f4 {[%clk
00:46:51]} {[%emt 00:03:18]} f6 {[%clk 01:00:48]} {[%emt 00:02:04]} 19. b4
{[%clk 00:45:14]} {[%emt 00:02:07]} Na6 {[%clk 00:59:05]} {[%emt 00:02:13]} 20.
c5 {[%clk 00:44:00]} {[%emt 00:01:44]} Bf8 {[%clk 00:58:52]} {[%emt 00:00:43]}
21. Bc4+ {[%clk 00:39:46]} {[%emt 00:04:44]} Bf7 {[%clk 00:58:32]} {[%emt
00:00:50]} 22. Bxf7+ {[%clk 00:39:37]} {[%emt 00:00:39]} Kxf7 {[%clk 00:58:58]}
{[%emt 00:00:05]} 23. Qb3+ {[%clk 00:39:47]} {[%emt 00:00:19]} Ke7 {[%clk
00:59:07]} {[%emt 00:00:20]} 24. Nf3 {[%clk 00:38:11]} {[%emt 00:02:06]} Kd8
{[%clk 00:57:16]} {[%emt 00:02:22]} 25. Rad1 {[%clk 00:35:37]} {[%emt
00:03:03]} Kc8 {[%clk 00:56:20]} {[%emt 00:01:26]} 26. Qf7 {[%clk 00:33:47]}
{[%emt 00:02:19]} Rd8 {[%clk 00:51:27]} {[%emt 00:05:23]} 27. Nd4 {[%clk
00:32:59]} {[%emt 00:01:19]} Ndb8 {[%clk 00:48:33]} {[%emt 00:03:25]} 28. Ne6
{[%clk 00:31:51]} {[%emt 00:01:37]} Rxd1 {[%clk 00:45:47]} {[%emt 00:03:16]} 29.
Rxd1 {[%clk 00:32:02]} {[%emt 00:00:18]} Qd7 {[%clk 00:44:16]} {[%emt
00:02:01]} 30. Qxf8+ {[%clk 00:32:13]} {[%emt 00:00:20]} 1-0

[Event "32nd NATO Chess Championship"]
[Site "Tartu, Estonia"]
[Date "2022.06.28"]
[Round "3.29"]
[White "Papler, Peter"]
[Black "Koopmeiners, Karl"]
[Result "1/2-1/2"]
[TimeControl "90 min + 30 sec increment from move one"]
[WhiteFideId "14609770"]
[BlackFideId "24624373"]
[WhiteElo "1714"]
[BlackElo "1946"]

1. d4 {[%clk 01:30:50]} {[%emt 00:00:09]} d5 {[%clk 01:30:44]} {[%emt
00:00:17]} 2. Nc3 {[%clk 01:31:13]} {[%emt 00:00:07]} c6 {[%clk 01:30:47]}
{[%emt 00:00:27]} 3. Bf4 {[%clk 01:31:24]} {[%emt 00:00:20]} Bf5 {[%clk
01:30:42]} {[%emt 00:00:33]} 4. Nf3 {[%clk 01:31:12]} {[%emt 00:00:42]} e6
{[%clk 01:30:54]} {[%emt 00:00:18]} 5. a3 {[%clk 01:31:07]} {[%emt 00:00:35]}
Bd6 {[%clk 01:30:50]} {[%emt 00:00:34]} 6. Bg3 {[%clk 01:29:31]} {[%emt
00:02:07]} Nf6 {[%clk 01:27:24]} {[%emt 00:03:55]} 7. e3 {[%clk 01:27:41]}
{[%emt 00:02:21]} Bxg3 {[%clk 01:25:40]} {[%emt 00:02:15]} 8. hxg3 {[%clk
01:27:59]} {[%emt 00:00:11]} Qb6 {[%clk 01:25:11]} {[%emt 00:00:59]} 9. b4
{[%clk 01:26:33]} {[%emt 00:01:56]} Nbd7 {[%clk 01:23:22]} {[%emt 00:02:19]} 10.
Nh4 {[%clk 01:21:09]} {[%emt 00:05:54]} O-O {[%clk 01:16:11]} {[%emt 00:07:41]}
11. Nxf5 {[%clk 01:21:12]} {[%emt 00:00:27]} exf5 {[%clk 01:16:39]} {[%emt
00:00:02]} 12. f3 {[%clk 01:20:49]} {[%emt 00:00:53]} a5 {[%clk 01:13:59]}
{[%emt 00:03:10]} 13. b5 {[%clk 01:19:40]} {[%emt 00:01:39]} a4 {[%clk
01:11:19]} {[%emt 00:03:09]} 14. Bd3 {[%clk 01:17:03]} {[%emt 00:03:08]} g6
{[%clk 01:11:21]} {[%emt 00:00:28]} 15. bxc6 {[%clk 01:13:23]} {[%emt
00:04:10]} bxc6 {[%clk 01:08:20]} {[%emt 00:03:31]} 16. Kf2 {[%clk 01:09:50]}
{[%emt 00:04:03]} c5 {[%clk 01:04:09]} {[%emt 00:04:41]} 17. Rb1 {[%clk
01:06:51]} {[%emt 00:03:29]} Qa5 {[%clk 01:02:05]} {[%emt 00:02:34]} 18. Nb5
{[%clk 01:04:30]} {[%emt 00:02:52]} Rab8 {[%clk 00:59:01]} {[%emt 00:03:33]} 19.
dxc5 {[%clk 01:03:05]} {[%emt 00:01:56]} Nxc5 {[%clk 00:58:46]} {[%emt
00:00:45]} 20. Be2 {[%clk 01:02:55]} {[%emt 00:00:40]} Ne6 {[%clk 00:51:43]}
{[%emt 00:07:53]} 21. Rb4 Rfd8 {[%clk 00:42:25]} {[%emt 00:04:48]} 22. Rhh4 d4
{[%emt 00:15:09]} 23. exd4 {[%emt 00:03:10]} Nd5 {[%clk 00:40:42]} {[%emt
00:00:06]} 24. Rb1 {[%clk 00:45:59]} {[%emt 00:07:52]} Nc3 {[%clk 00:32:20]}
{[%emt 00:08:51]} 1/2-1/2

[Event "32nd NATO Chess Championship"]
[Site "Tartu, Estonia"]
[Date "2022.06.28"]
[Round "3.30"]
[White "Hater, David"]
[Black "Windey, Luc"]
[Result "1/2-1/2"]
[TimeControl "90 min + 30 sec increment from move one"]
[WhiteFideId "2017776"]
[BlackFideId "249220"]
[WhiteElo "1944"]
[BlackElo "1624"]

1. e4 {[%clk 01:30:36]} c5 {[%clk 00:00:00]} 2. Nf3 {[%clk 01:30:36]} Nc6
{[%clk 00:00:00]} 3. Be2 {[%clk 01:30:36]} d6 {[%clk 00:00:00]} 4. c3 {[%clk
01:30:36]} Nf6 {[%clk 00:00:00]} 5. d4 {[%clk 01:30:36]} cxd4 {[%clk 00:00:00]}
6. cxd4 {[%clk 01:30:36]} Nxe4 {[%clk 00:00:00]} 7. d5 {[%clk 01:30:36]} Qa5+
{[%clk 00:00:00]} 8. Nc3 {[%clk 01:30:36]} Nxc3 {[%clk 00:00:00]} 9. bxc3
{[%clk 01:30:36]} Ne5 {[%clk 00:00:00]} 10. Nxe5 {[%clk 01:30:36]} dxe5 {[%clk
00:00:00]} 11. O-O {[%clk 01:30:36]} g6 {[%clk 00:00:00]} 12. Qb3 {[%clk
01:30:36]} a6 {[%clk 00:00:00]} 13. Be3 {[%clk 01:30:36]} Qc7 {[%clk 00:00:00]}
14. f4 {[%clk 01:30:36]} Bh6 {[%clk 00:00:00]} 15. Bb6 {[%clk 01:30:36]} Qd6
{[%clk 00:00:00]} 16. fxe5 {[%clk 01:30:36]} Qxe5 {[%clk 00:00:00]} 17. Rae1
{[%clk 01:30:36]} O-O {[%clk 00:00:00]} 18. Bxa6 {[%clk 01:30:36]} Qd6 {[%clk
00:00:00]} 19. Bc4 {[%clk 01:30:36]} Bg7 {[%clk 00:00:00]} 20. Bd4 {[%clk
01:30:36]} Ra3 {[%clk 00:00:00]} 21. Qd1 {[%clk 01:30:36]} b6 {[%clk 00:00:00]}
1/2-1/2

[Event "32nd NATO Chess Championship"]
[Site "Tartu, Estonia"]
[Date "2022.06.28"]
[Round "3.31"]
[White "Sui, Andres"]
[Black "Peraino, Andrew"]
[Result "0-1"]
[TimeControl "90 min + 30 sec increment from move one"]
[WhiteFideId "4507029"]
[BlackFideId "30936187"]
[WhiteElo "1288"]
[BlackElo "1940"]

1. e4 {[%clk 01:30:48]} {[%emt 00:00:09]} c5 {[%clk 01:30:33]} {[%emt
00:00:28]} 2. Nf3 {[%clk 01:31:07]} {[%emt 00:00:11]} d6 {[%clk 01:30:56]}
{[%emt 00:00:08]} 3. d4 {[%clk 01:31:26]} {[%emt 00:00:10]} cxd4 {[%clk
01:31:16]} {[%emt 00:00:11]} 4. Nxd4 {[%clk 01:31:23]} {[%emt 00:00:32]} Nf6
{[%clk 01:31:23]} {[%emt 00:00:23]} 5. Nc3 {[%clk 01:31:20]} {[%emt 00:00:32]}
Nc6 {[%clk 01:29:55]} {[%emt 00:01:59]} 6. Be3 {[%clk 01:30:12]} {[%emt
00:01:38]} g6 {[%clk 01:29:28]} {[%emt 00:00:58]} 7. f4 {[%clk 01:29:56]}
{[%emt 00:00:45]} Bg7 {[%clk 01:22:27]} {[%emt 00:07:31]} 8. Be2 {[%clk
01:27:26]} {[%emt 00:03:00]} O-O {[%clk 01:21:20]} {[%emt 00:01:37]} 9. O-O
{[%clk 01:26:52]} {[%emt 00:01:02]} a6 {[%clk 01:14:56]} {[%emt 00:06:56]} 10.
Qd2 {[%clk 01:25:14]} {[%emt 00:02:07]} Qc7 {[%clk 01:05:43]} {[%emt 00:09:44]}
11. Bf3 {[%clk 01:23:11]} {[%emt 00:02:32]} Bd7 {[%clk 01:03:04]} {[%emt
00:03:10]} 12. Rac1 {[%clk 01:23:04]} {[%emt 00:00:35]} Rac8 {[%clk 01:02:47]}
{[%emt 00:00:49]} 13. a3 {[%clk 01:22:32]} {[%emt 00:01:02]} Na5 {[%clk
01:02:55]} {[%emt 00:00:21]} 14. Nd5 {[%clk 01:22:00]} {[%emt 00:01:02]} Nxd5
{[%clk 01:03:14]} {[%emt 00:00:12]} 15. exd5 {[%clk 01:22:15]} {[%emt
00:00:12]} Nc4 {[%clk 01:03:38]} {[%emt 00:00:09]} 16. Qc3 {[%clk 01:22:08]}
{[%emt 00:00:36]} Qb6 {[%clk 00:59:43]} {[%emt 00:04:26]} 17. Nf5 {[%clk
01:12:40]} {[%emt 00:09:59]} Bxf5 {[%clk 01:00:06]} {[%emt 00:00:08]} 18. Qxg7+
{[%clk 01:12:25]} {[%emt 00:00:44]} Kxg7 {[%clk 01:00:29]} {[%emt 00:00:07]} 19.
Bxb6 {[%clk 01:12:51]} {[%emt 00:00:04]} Nxb6 {[%clk 01:00:49]} {[%emt
00:00:10]} 20. c3 {[%clk 01:13:13]} {[%emt 00:00:08]} h5 {[%clk 00:59:36]}
{[%emt 00:01:43]} 21. h3 {[%clk 01:13:30]} {[%emt 00:00:13]} h4 {[%clk
00:59:46]} {[%emt 00:00:20]} 22. Rfe1 {[%clk 01:13:38]} {[%emt 00:00:21]} Rfe8
{[%clk 00:57:24]} {[%emt 00:02:52]} 23. b3 {[%clk 01:14:00]} {[%emt 00:00:08]}
Nd7 {[%clk 00:57:41]} {[%emt 00:00:14]} 24. b4 {[%clk 01:14:21]} {[%emt
00:00:09]} Nb6 {[%clk 00:57:23]} {[%emt 00:00:49]} 25. Kf2 {[%clk 01:14:32]}
{[%emt 00:00:18]} Nc4 {[%clk 00:57:35]} {[%emt 00:00:18]} 26. a4 {[%clk
01:14:57]} {[%emt 00:00:05]} Nb2 {[%clk 00:57:48]} {[%emt 00:00:17]} 27. Re3
{[%clk 01:15:00]} {[%emt 00:00:27]} Nd3+ {[%clk 00:58:08]} {[%emt 00:00:10]}
0-1

[Event "32nd NATO Chess Championship"]
[Site "Tartu, Estonia"]
[Date "2022.06.28"]
[Round "3.34"]
[White "Rizihs, Valerijs"]
[Black "Tammisto, Janek"]
[Result "0-1"]
[TimeControl "90 min + 30 sec increment from move one"]
[WhiteFideId "11603380"]
[BlackFideId "4510950"]
[WhiteElo "1619"]
[BlackElo "1881"]

1. d4 {[%clk 01:30:36]} {[%emt 00:00:24]} Nf6 {[%clk 01:30:53]} {[%emt
00:00:07]} 2. Nc3 {[%clk 01:30:59]} {[%emt 00:00:07]} g6 {[%clk 01:31:14]}
{[%emt 00:00:11]} 3. e4 {[%clk 01:31:22]} {[%emt 00:00:07]} d6 {[%clk
01:31:40]} {[%emt 00:00:03]} 4. Nf3 {[%clk 01:31:45]} {[%emt 00:00:06]} Bg7
{[%clk 01:31:50]} {[%emt 00:00:19]} 5. Be2 {[%clk 01:31:36]} {[%emt 00:00:40]}
O-O {[%clk 01:31:47]} {[%emt 00:00:33]} 6. O-O {[%clk 01:31:40]} {[%emt
00:00:26]} b6 {[%clk 01:30:55]} {[%emt 00:01:22]} 7. Re1 {[%clk 01:23:17]}
{[%emt 00:08:53]} Bb7 {[%clk 01:27:13]} {[%emt 00:04:13]} 8. Bf1 {[%clk
01:22:29]} {[%emt 00:01:16]} c5 {[%clk 01:26:42]} {[%emt 00:01:02]} 9. d5
{[%clk 01:20:16]} {[%emt 00:02:42]} Na6 {[%clk 01:18:08]} {[%emt 00:09:05]} 10.
h3 {[%clk 01:18:24]} {[%emt 00:02:21]} Nc7 {[%clk 01:18:10]} {[%emt 00:00:29]}
11. Bf4 {[%clk 01:16:28]} {[%emt 00:02:26]} a6 {[%clk 01:17:37]} {[%emt
00:01:04]} 12. a4 {[%clk 01:16:01]} {[%emt 00:00:56]} Qd7 {[%clk 01:08:04]}
{[%emt 00:10:03]} 13. Qd2 {[%clk 01:09:50]} {[%emt 00:06:40]} b5 {[%clk
01:06:53]} {[%emt 00:01:42]} 14. axb5 {[%clk 01:00:30]} {[%emt 00:09:51]} axb5
{[%clk 01:06:53]} {[%emt 00:00:29]} 15. e5 {[%clk 00:58:27]} {[%emt 00:02:32]}
b4 {[%clk 01:03:31]} {[%emt 00:03:53]} 16. Rxa8 {[%clk 00:34:59]} {[%emt
00:23:58]} Rxa8 {[%clk 01:03:49]} {[%emt 00:00:12]} 17. Nd1 {[%clk 00:17:24]}
{[%emt 00:18:04]} Nfxd5 {[%clk 01:00:39]} {[%emt 00:03:40]} 18. exd6 {[%clk
00:16:04]} {[%emt 00:01:50]} exd6 {[%clk 00:58:39]} {[%emt 00:02:31]} 19. Bg3
{[%clk 00:13:40]} {[%emt 00:02:54]} Ba6 {[%clk 00:55:53]} {[%emt 00:03:16]} 20.
Bxa6 {[%clk 00:12:16]} {[%emt 00:01:54]} Rxa6 {[%clk 00:56:21]} {[%emt
00:00:02]} 21. c4 {[%clk 00:11:17]} {[%emt 00:01:29]} Ne7 {[%clk 00:42:24]}
{[%emt 00:14:26]} 22. b3 {[%clk 00:05:17]} {[%emt 00:06:30]} Ne6 {[%clk
00:40:46]} {[%emt 00:02:08]} 23. Re2 {[%clk 00:03:37]} {[%emt 00:02:11]} Nf5
{[%clk 00:40:12]} {[%emt 00:01:04]} 24. Be5 {[%clk 00:02:18]} {[%emt 00:01:49]}
Bxe5 {[%clk 00:38:28]} {[%emt 00:02:14]} 25. Nxe5 {[%clk 00:02:46]} {[%emt
00:00:01]} Qc7 {[%clk 00:38:57]} {[%emt 00:00:02]} 26. Ng4 {[%clk 00:02:26]}
{[%emt 00:00:49]} Qd8 {[%clk 00:33:55]} {[%emt 00:05:33]} 27. Nde3 {[%clk
00:01:28]} {[%emt 00:01:27]} h5 {[%clk 00:30:44]} {[%emt 00:03:42]} 28. Nxf5
{[%clk 00:01:52]} {[%emt 00:00:07]} hxg4 {[%clk 00:30:59]} {[%emt 00:00:14]} 29.
Nh6+ {[%clk 00:02:13]} {[%emt 00:00:08]} Kf8 {[%clk 00:28:53]} {[%emt
00:02:38]} 30. Nxg4 {[%clk 00:02:37]} {[%emt 00:00:05]} Qg5 {[%clk 00:29:03]}
{[%emt 00:00:19]} 31. Qb2 {[%clk 00:02:01]} {[%emt 00:01:06]} Nd4 {[%clk
00:29:06]} {[%emt 00:00:27]} 32. Rd2 {[%clk 00:01:42]} {[%emt 00:00:50]} Ra1+
{[%clk 00:27:49]} {[%emt 00:01:47]} 33. Qxa1 {[%clk 00:01:45]} {[%emt
00:00:27]} Qxd2 {[%clk 00:28:17]} {[%emt 00:00:02]} 34. Qa8+ {[%clk 00:01:48]}
{[%emt 00:00:27]} Kg7 {[%clk 00:28:45]} {[%emt 00:00:02]} 35. Qd8 {[%clk
00:01:25]} {[%emt 00:00:52]} Ne2+ {[%clk 00:28:03]} {[%emt 00:01:12]} 36. Kh2
{[%clk 00:01:42]} {[%emt 00:00:12]} Qd4 {[%clk 00:28:11]} {[%emt 00:00:24]} 37.
g3 {[%clk 00:01:07]} {[%emt 00:01:05]} Qa1 {[%clk 00:27:12]} {[%emt 00:01:29]}
38. Kg2 {[%clk 00:00:33]} {[%emt 00:01:03]} Qg1+ {[%clk 00:26:28]} {[%emt
00:01:14]} 39. Kf3 {[%clk 00:00:57]} {[%emt 00:00:06]} Nd4+ {[%clk 00:26:55]}
{[%emt 00:00:04]} 40. Ke4 {[%clk 00:00:37]} {[%emt 00:00:50]} Qb1+ {[%clk
00:27:22]} {[%emt 00:00:03]} 41. Kd5 {[%clk 00:00:50]} {[%emt 00:00:17]} Qf5+
{[%clk 00:27:37]} {[%emt 00:00:13]} 42. Kxd6 {[%clk 00:01:02]} {[%emt
00:00:19]} Nxb3 {[%clk 00:27:46]} {[%emt 00:00:21]} 43. Kc7 {[%clk 00:00:48]}
{[%emt 00:00:44]} Nd4 {[%clk 00:27:51]} {[%emt 00:00:25]} 44. Qd6 {[%clk
00:00:46]} {[%emt 00:00:33]} b3 {[%clk 00:26:40]} {[%emt 00:01:41]} 45. Ne3
{[%clk 00:00:45]} {[%emt 00:00:30]} Qxf2 {[%clk 00:26:36]} {[%emt 00:00:34]} 46.
Nd5 {[%clk 00:00:59]} {[%emt 00:00:17]} Ne6+ {[%clk 00:24:22]} {[%emt
00:02:44]} 47. Kc8 {[%clk 00:01:28]} Qd4 {[%clk 00:24:25]} {[%emt 00:00:28]} 48.
Qb8 {[%clk 00:00:46]} {[%emt 00:01:12]} b2 {[%clk 00:24:17]} {[%emt 00:00:38]}
49. Nf4 {[%clk 00:00:52]} {[%emt 00:00:23]} Qd8+ {[%clk 00:24:27]} {[%emt
00:00:20]} 0-1